Cogmind - Beta 11.2 @@@ ROGUE MODE // 2023.01.18 @ 23:25:43 Player: Red Box Result: Destroyed by as-53515 with Assembled Heavy Rifle Performance ------------- Evolutions (0) 0 Regions Visited (2) 400 Robots Destroyed (15) 75 Value Destroyed (195) 195 Prototype IDs (2) 40 Alien Tech Used (0) 0 Bonus (0) 0 TOTAL SCORE: 710 Bonus ------- None Cogmind --------- Core Integrity 0/250 Matter 205/300 Energy 100/100 System Corruption 4% Temperature Cool (0) Movement Rolling (115) Ox1 Location -10/Mines Parts ------- > --- POWER (1) -------- (None) > --- PROPULSION (2) --- Compact Wheel Compact Wheel > --- UTILITY (2) ------ High-capacity Storage Unit > --- WEAPON (2) ------- (None) > --- INVENTORY (20) --- Light Treads Light Treads Light Treads Large Storage Unit Visual Processing Unit Improved Terrain Scanner Light Armor Plating Light Armor Plating Thief Drone Bay Heavy EM Pulse Gun Heavy Assault Rifle Heavy Assault Rifle Heavy Assault Rifle Heavy Assault Rifle Mining Claw Peak State ------------ > --- POWER ------------ Ion Engine > --- PROPULSION ------- Wheel Wheel > --- UTILITY ---------- High-capacity Storage Unit Improved Terrain Scanner > --- WEAPON ----------- Heavy EM Pulse Gun Heavy EM Pulse Gun > --- INVENTORY -------- Ion Engine Light Treads Light Treads Compact Wheel Compact Wheel Large Storage Unit Visual Processing Unit Light Armor Plating Light Armor Plating Light Armor Plating Heavy EM Pulse Gun Heavy EM Pulse Gun Heavy Assault Rifle Heavy Assault Rifle Grenade Launcher Mining Claw [Rating: 13] Favorites ----------- Power Ion Engine Engine Ion Engine Propulsion Aluminum Leg Leg Aluminum Leg Wheel Wheel Utility Improved Terrain Scanner Device Improved Terrain Scanner Storage Small Storage Unit Weapon Small Laser Energy Gun Small Laser Launcher Grenade Launcher Build | -11 -10 -10 ------- Run | Scr Mat Min Slots Evolved . | . . . Power . | . . . Propulsion . | . . . Utility . | . . . Weapon . | . . . Parts Attached 23 | 7 9 7 Power 2 | 1 . 1 Engine 2 | 1 . 1 Core . | . . . Reactor . | . . . Propulsion 7 | 2 3 2 Treads . | . . . Leg 3 | 2 1 . Wheel 4 | . 2 2 Hover . | . . . Flight . | . . . Utility 5 | 2 2 1 Device 2 | 1 . 1 Storage 3 | 1 2 . Processor . | . . . Hackware . | . . . Protection . | . . . Artifact . | . . . Weapon 9 | 2 4 3 Energy Gun 8 | 2 4 2 Energy Cannon . | . . . Ballistic Gun . | . . . Ballistic Cannon . | . . . Launcher 1 | . . 1 Special Weapon . | . . . Impact Weapon . | . . . Slashing Weapon . | . . . Piercing Weapon . | . . . Special Melee Weapon . | . . . Unidentified Prototypes . | . . . Parts Lost 9 | . . 9 Power 2 | . . 2 Propulsion 2 | . . 2 Utility 1 | . . 1 Weapon 4 | . . 4 Highest Loss Streak 9 | . . 9 To Critical Strikes . | . . . Average Slot Usage (%) 99 | . 100 96 Engine 13 | . 14 13 Leg 17 | . 21 . Wheel 10 | . 6 26 Device 13 | . 14 13 Storage 14 | . 14 14 Energy Gun 27 | . 28 26 Naked Turns . | . . . Heaviest Build 52 | 13 52 52 Greatest Support 32 | 20 20 32 Greatest Overweight (x) 4 | 1 2 4 Average Overweight (x) . | . . 1 Largest Inventory Capacity 20 | 8 20 20 Average Capacity 13 | 7 12 20 Most Carried 20 | 8 19 20 Average Carried 12 | 4 11 19 Final Capacity 20 | 8 20 20 Final Carried 19 | 8 19 15 Class Distribution -------------------- 100% | Mutant Dominant Class ---------------- Mutant | -10/Materials Mutant | -10/Mines Resources | -11 -10 -10 ----------- Run | Scr Mat Min Matter Collected 453 | 270 153 30 Remotely . | . . . Salvage Created 543 | 105 333 105 Parts 34 | 6 28 . Haulers Intercepted 2 | . 2 . Recyclers Shooed . | . . . Parts Field Recycled . | . . . Retrieved Matter . | . . . Parts Self-Destructed . | . . . Prevented . | . . . Kills | -11 -10 -10 ------- Run | Scr Mat Min Combat Hostiles Destroyed 18 | . 8 10 Guns 11 | . 8 3 AOE 7 | . . 7 Classes Destroyed 8 | 2 5 1 Builder 1 | . 1 . Tunneler 1 | 1 . . Hauler 2 | . 2 . Recycler 1 | 1 . . Watcher 2 | . 2 . Swarmer 6 | . 6 . Grunt 2 | . 2 . Assembled 10 | . . 10 Best Kill Streak 10 | 1 4 10 Combat Bots Only 10 | . 3 10 Max Kills in Single Turn 3 | 1 2 3 Gunslinging . | . . . Exploded 3 | . . 3 Melee . | . . . Uniques/NPCs Destroyed . | . . . Combat | -11 -10 -10 -------- Run | Scr Mat Min Damage Taken 945 | . 266 679 Core 250 | . 51 199 Absorbed by Shields . | . . . Regen/Repaired (Parts) 67 | . 67 . Core Remaining (%) 100 | 100 . . Volleys Fired 70 | 11 32 27 Largest 2 | 2 2 2 Hottest 90 | 80 90 90 Shots Fired 128 | 22 64 42 Gun 119 | 22 64 33 Cannon . | . . . Launcher 9 | . . 9 Special . | . . . Kinetic . | . . . Thermal 60 | 22 38 . Explosive 9 | . . 9 Electromagnetic 59 | . 26 33 Robot Hit Streak 6 | 6 5 6 Robot Miss Streak 4 | 4 4 2 Penetration Max . | . . . Secondary Targets . | . . . Shots Hit Robots 71 | 14 34 23 Core Hits 43 | 3 16 24 Critical Kills . | . . . Critical Parts Destroyed . | . . . Critical Strikes . | . . . Melee Attacks . | . . . Impact . | . . . Slashing . | . . . Piercing . | . . . Sneak Attacks . | . . . Combat Hostiles . | . . . Follow-up Attacks . | . . . Damage Inflicted 1417 | 166 588 663 Guns 884 | 166 479 239 Cannons . | . . . Explosions 533 | . 109 424 Melee . | . . . Ramming . | . . . Kinetic . | . . . Thermal 484 | 166 318 . Explosive 424 | . . 424 Electromagnetic 509 | . 270 239 Impact . | . . . Slashing . | . . . Piercing . | . . . Highest Corruption 4 | . . 4 Average Corruption 4 | . . 4 Corruption Purged . | . . . Corruption Blocked . | . . . Effects 1 | . . 1 Message Errors 1 | . . 1 Overload Shots . | . . . Overflow Damage 9 | . . 9 Projectiles . | . . . Explosions 9 | . . 9 Melee . | . . . Knockbacks . | . . . Impact . | . . . Kinetic . | . . . Secondary . | . . . Self-Inflicted Damage 105 | . 23 82 Shots 6 | . 1 5 Rammed . | . . . Targets Rammed . | . . . Kicked . | . . . Crushed . | . . . Highest Temperature 375 | 126 375 20 Average Temperature 71 | 51 82 18 Received Heat Transfer 152 | . 132 20 Effects 1 | . 1 . Matter Decay 1 | . 1 . Siege Activations . | . . . Robots Corrupted . | . . . Combat Hostiles . | . . . Parts Fried 1 | . 1 . Impact Corruptions . | . . . Robots Melted . | . . . Combat Hostiles . | . . . Parts Melted . | . . . Heat Transferred 1000 | 375 625 . Parts Sabotaged . | . . . Parts Stolen . | . . . Parts Stripped . | . . . Power Chain Reactions 2 | . 2 . Missiles Intercepted . | . . . Alert | -11 -10 -10 ------- Run | Scr Mat Min Peak Influence 168 | 10 168 129 Initial 6 | . 6 . Average 39 | 4 51 5 Maximum Alert Level . | . . . Low Security (%) 100 | 100 100 100 Level 1 . | . . . Level 2 . | . . . Level 3 . | . . . Level 4 . | . . . Level 5 . | . . . High Security . | . . . Max Security . | . . . Squads Dispatched . | . . . Investigation . | . . . Extermination . | . . . Reinforcement . | . . . Assault . | . . . Garrison . | . . . Intercept . | . . . Searches Triggered . | . . . Construction Impeded . | . . . Haulers Reinforced . | . . . Active Scanning Responses . | . . . Cargo Convoy Interrupts . | . . . Stealth | -11 -10 -10 --------- Run | Scr Mat Min Distress Signals 1 | . 1 . Communications Jammed . | . . . Distress Signals . | . . . Times Spotted 44 | . 17 27 Peak Tracking Total 10 | . 3 10 Tactical Retreats 5 | . 2 3 Traps | -11 -10 -10 ------- Run | Scr Mat Min Traps Triggered 1 | . 1 . Indirectly . | . . . Trap Hack Attempts . | . . . Triggered . | . . . Disarmed . | . . . Reprogrammed . | . . . Reused . | . . . Traps Extracted . | . . . Installed . | . . . Triggered . | . . . Machines | -11 -10 -10 ---------- Run | Scr Mat Min Machines Disabled . | . . . Max in Single Turn . | . . . Machines Sabotaged . | . . . Garrisons Compromised . | . . . Overloaded Fab Kills . | . . . Hacking | -11 -10 -10 --------- Run | Scr Mat Min Machines Accessed 8 | . 7 1 Terminals 6 | . 6 . Fabricators . | . . . Repair Stations 1 | . 1 . Recycling Units . | . . . Scanalyzers . | . . . Garrison Access . | . . . Total Hacks 30 | . 29 1 Successful 20 | . 19 1 Failed 9 | . 9 . Catastrophic . | . . . Database Lockouts 1 | . 1 . Manual 17 | . 17 . Terminals 24 | . 24 . Fabricators . | . . . Repair Stations 5 | . 5 . Recycling Units . | . . . Scanalyzers . | . . . Garrison Access . | . . . Terminal Hacks 11 | . 10 1 Part Schematic 1 | . 1 . Robot Analysis 4 | . 4 . Prototype ID Bank 1 | . 1 . Open Door 1 | . . 1 Terminal Index 1 | . 1 . Locate Traps 3 | . 3 . Fabricator Hacks . | . . . Repair Station Hacks 4 | . 4 . Scan Component 2 | . 2 . Repair 2 | . 2 . Recycling Unit Hacks . | . . . Scanalyzer . | . . . Garrison Access Hacks . | . . . Unauthorized Hacks 5 | . 5 . Terminals 5 | . 5 . Assimilate 3 | . 3 . Botnet 1 | . 1 . Operators 1 | . 1 . Fabricators . | . . . Repair Stations . | . . . Recycling Units . | . . . Scanalyzers . | . . . Garrison Access . | . . . Data Cores Recovered . | . . . Used . | . . . Hacking Detections 7 | . 7 . Full Trace Events . | . . . Feedback Events . | . . . Feedback Blocked . | . . . Robot Schematics Acquired . | . . . Robots Built . | . . . Authchips . | . . . Time . | . . . Total Robot Build Rating . | . . . Part Schematics Acquired 1 | . 1 . Parts Built . | . . . Authchips . | . . . Time . | . . . Total Part Build Rating . | . . . Parts Repaired 2 | . 2 . Time 64 | . 64 . Parts Recycled . | . . . Recycled Matter . | . . . Retrieved Matter . | . . . Retrieved Components . | . . . Parts Scanalyzed . | . . . Part Schematics Acquired . | . . . Parts Damaged . | . . . Bothacking | -11 -10 -10 ------------ Run | Scr Mat Min Used RIF Installer . | . . . Robots Hacked . | . . . Non-combat . | . . . Combat . | . . . Robot Hacks Applied . | . . . Relay Couplers Released . | . . . Fabnet Peak Effective % . | . . . Robots Rewired . | . . . Allies Hacked . | . . . Hacks Repelled . | . . . Allies | -11 -10 -10 -------- Run | Scr Mat Min Total Allies 1 | . 1 . Largest Group 1 | . 1 1 Highest-Rated Group 10 | . 10 10 Highest-Rated Ally 10 | . 10 10 Total Orders 1 | . . 1 STAY 1 | . . 1 Ally Attacks . | . . . Total Damage . | . . . Kills . | . . . Allies Corrupted . | . . . Allies Melted . | . . . Intel | -11 -10 -10 ------- Run | Scr Mat Min Robot Analysis Total 4 | . 4 . Derelict Logs Recovered 1 | . . 1 Drone Launches . | . . . Drone Recoveries . | . . . Exploration | -11 -10 -10 ------------- Run | Scr Mat Min Turns Passed 2229 | 133 1648 448 Spaces Moved 1448 | 70 1070 308 Core 6 | 6 . . Treads . | . . . Legs 881 | 64 817 . Wheels 561 | . 253 308 Hover . | . . . Flight . | . . . Fastest Speed 50 | 50 95 110 Average Speed 127 | 117 132 110 Slowest Speed 190 | 190 190 140 Overloaded Moves . | . . . Propulsion Burnouts . | . . . Robots Hopped . | . . . Cave-ins Triggered . | . . . Exploration Rate (%) 54 | 4 99 61 Regions Visited 2 Branch Regions 1 Pre-discovered Areas . | . . . Known Exits Taken . | . . . Unknown Exits Taken 2 | 1 1 . Scrap Searched 1 | . . 1 Spaces Dug . | . . . Terrain Destroyed 86 | . 7 79 Melee . | . . . Projectile . | . . . AOE 86 | . 7 79 Terrain Rammed . | . . . Walls Destroyed . | . . . Machines Disabled . | . . . Actions | -11 -10 -10 --------- Run | Scr Mat Min Total 1703 | 95 1234 374 Wait 127 | . 98 29 Move 1446 | 69 1069 308 Hop . | . . . Pick Up 29 | 8 19 2 Fast Attach 9 | 7 1 1 Attach 11 | . 6 5 Detach . | . . . Swap 3 | . 2 1 Drop 8 | . 7 1 Fire 70 | 11 32 27 Melee . | . . . Ram . | . . . Kick . | . . . Crush . | . . . Escape Stasis . | . . . Rewire . | . . . Trap . | . . . Miscellaneous . | . . . Route ------- -11/Scrapyard -10/Materials (discovered 4 exits: [*Mat x3] / *Min) -10/Mines (discovered 2 exits: [*Mat] / [*Exi]) History --------- Turn | Location | Event 22 | -11/Scrapyard | Discovered new exit (range 15) 134 | -11/Scrapyard | Entered Materials 306 | -10/Materials | Build established: Mutant 512 | -10/Materials | Discovered new exit (range 16) 650 | -10/Materials | Discovered new exit (range 16) 763 | -10/Materials | Discovered new exit (range 5) 886 | -10/Materials | Discovered new exit (range 12) 1458 | -10/Materials | Central database locked down 1660 | -10/Materials | Repaired Hvy. EM Pulse Gun 1693 | -10/Materials | Repaired Hvy. EM Pulse Gun 1782 | -10/Materials | Entered Mines 1782 | -10/Mines | Accompanied by 1 ally 1802 | -10/Mines | Found the Drone Emporium 1809 | -10/Mines | Found Prototype Device 1918 | -10/Mines | Learned Materials stockpile data 2006 | -10/Mines | Deemed a non-threat by the Exiles lab entrance 2006 | -10/Mines | Discovered new exit (range 5) 2103 | -10/Mines | Discovered new exit (range 8) 2128 | -10/Mines | Assembled infested the area 2133 | -10/Mines | Assisted by a Guerilla fighting off Assembled 2191 | -10/Mines | Core integrity fell below 50% 2224 | -10/Mines | Core integrity fell below 20% 2230 | -10/Mines | Destroyed by as-53515 with Assembled Heavy Rifle Last Messages --------------- 02201_ Knocked back. 02203_ as-51120 destroyed. 02203_ as-32499 destroyed. 02203_ as-47676 destroyed. 02205_ Hvy. EM Pulse Gun destroyed. 02207_ The unstable cave ceiling collapses. 02208_ W4IJTA8,/QW9QJ 02208_ as-03281 destroyed. 02208_ Wheel destroyed. 02208_ Destroyed Wheel. 02210_ The unstable cave ceiling collapses. 02214_ as-32945 destroyed. 02216_ as-98525 destroyed. 02216_ Heat Sink destroyed. 02217_ The unstable cave ceiling collapses. 02218_ as-65251 destroyed. 02222_ Destroyed Asb. Hover Unit. 02222_ Grenade Launcher destroyed. 02224_ The unstable cave ceiling collapses. 02226_ Ion Engine destroyed. Map ----- +----------------------------------------------------+ | | | | | | | | | | | | | ????????????????????????????????????????? | | ????????????????????????????????????????? | | ??????????????????###???????????????????? | | ?????????????????# #???#???????????????? | | ???? ??????????? ??? #??????????????? | | ??? ????????## ???? #?????????????? | | ???# ???##### ???? ##????????????? | | ????# ### ????? #????????????? | | ?????# ????? #????????????? | | ??????# #????? #????????????? | | ???????# #????? ?????????????? | | ????????# ###### ####??????????? | | ?????????# # # #??????????? | | ?????????###### ##### #??????????? | | ??????????????# #?# #??????????? | | ????????####### #?## # #??????????? | | ????????# #?# #??????????? | | ######### a # #??????????? | | ##### #??????????? | | ##########???# # @ ###??????????? | | #????????????# a % ##????????????? | | #????????????# #?????????????? | | #????????????# ## #?????????????? | | #????????????# a # ## ?????????????? | | ##????????????## #####?# ?????????????? | | ###??????????= ??????# ! ????????????? | | ##????????###???????# ! ????????????? | | #??????????????????# ! !???????????? | | # #?????????????????? ???????????? | | ?# #??????????????????####???????????? | | ??# ##?????????????????????????????????? | | ???###??????????????????????????????????? | | ????????????????????????????????????????? | | ????????????????????????????????????????? | | ????????????????????????????????????????? | | ????????????????????????????????????????? | | ????????????????????????????????????????? | | ????????????????????????????????????????? | | ##??????????????????????????????????????? | | ##?????????????????????????????????????? | | ##????????????????????????????????????? | | ##????????#??????????????????????????? | | # #???????????????????????????????????? | | # ##??????????????????????????????????? | +----------------------------------------------------+ Best States ------------- Heat Dissipation 35 Energy Generation 10 Energy Capacity 250 Matter Stores 300 Matter Capacity 300 Sight Range 16 Terrain Scan Range 16 Terrain Scan Density 10 Evasion (%) 55 Item Schematics ----------------- Hcp. Battery | -10/Materials | Hacked Robot Schematics ------------------ None Fabricated ------------ Nothing Alien Tech Used ----------------- None Achievements -------------- None Challenges ------------ None Game ------ Seed BurstClaymoresMace Manual? 0 Play Time 00:17:59 Cumulative 345.1 hours Start 2023.01.18 @ 22:59:35 End 2023.01.18 @ 23:25:43 Sessions 1 Manual Loads 0 Difficulty Rogue Special Mode None Game No. 285 Rogue 285 Adventurer 0 Explorer 0 Win Type - Total 0 Types 0/0/0/0/0/0/0/0/0 Lore% 57 Gallery% 62 Achievement% 45 Wizard Run 0 Options --------- ASCII 0 Keyboard 0 Movement Mouse Keybinds 0 Fullscreen 1 Font 16/SmallcapsGlow Map View 75x55 Tactical HUD 1 Map Filters NONE Filters NONE Steam 1 RUN: 50f67729-d6fe-4ed9-8826-d0266170d669